Cogmind - Beta 12 @@@ ROGUE MODE // 2023.08.27 @ 20:15:59 Player: CrossedViper Result: Destroyed by Y-54 Guardian with Gatling Laser Performance ------------- Evolutions (3) 1500 Regions Visited (7) 1400 Robots Destroyed (259) 1295 Value Destroyed (8822) 8822 Prototype IDs (18) 360 Alien Tech Used (0) 0 Bonus (4232) 4232 TOTAL SCORE: 17609 Bonus ------- Triggered High Security 500 High Alert Combat Kills 3492 Follower Combat Kills 75 Entered Garrisons 200 Friendly Fire -35 Cogmind --------- Core Integrity 0/700 Matter 6/300 Energy 100/100 System Corruption 3% Temperature Cool (6) Movement Core (100) Ox1 Location -7/Factory Parts ------- > --- POWER (1) -------- (None) > --- PROPULSION (4) --- (None) > --- UTILITY (6) ------ Coolant Injector Active Sensor Suite Transport Network Coupler > --- WEAPON (2) ------- (None) > --- INVENTORY (5) ---- Tri-rail Accelerator Peak State ------------ > --- POWER ------------ Cold Fusion Reactor > --- PROPULSION ------- Armored Treads Armored Treads Armored Treads Armored Treads > --- UTILITY ---------- Coolant Injector High-capacity Storage Unit Transport Network Coupler Advanced Targeting Computer Armor Integrity Analyzer Precision Matter Filter > --- WEAPON ----------- Advanced Variable Charge Gun Advanced Variable Charge Gun > --- INVENTORY -------- F-cell Engine Cold Fusion Reactor Cold Fusion Reactor Cold Fusion Reactor Wheel Coolant Injector Active Sensor Suite Advanced Variable Charge Gun Advanced Variable Charge Gun Gauss Rifle Tri-rail Accelerator Tri-rail Accelerator Neutron Missile Launcher Neutron Missile Launcher [Rating: 66] Favorites ----------- Power Heavy Ion Engine Engine Heavy Ion Engine Power Core Micro Nuclear Core Reactor Cold Fusion Reactor Propulsion Light Treads Treads Light Treads Leg Carbon-fiber Leg Wheel Wheel Utility High-capacity Storage Unit Device Weapon Cycler Storage High-capacity Storage Unit Processor Transport Network Coupler Hackware Hacking Suite Protection Hardened Medium Armor Plating Weapon Flak Gun Energy Gun Improved Medium Laser Energy Cannon Advanced Beam Cannon Ballistic Gun Flak Gun Ballistic Cannon Tri-rail Accelerator Launcher Rocket Launcher Build | -11 -10 -9 -9 -8 -8 -8 -7 ------- Run | Jun Mat Mat Min Mat Gar Mat Fac Slots Evolved 6 | . . 2 . 2 . . 2 Power . | . . . . . . . . Propulsion 2 | . . 1 . 1 . . . Utility 4 | . . 1 . 1 . . 2 Weapon . | . . . . . . . . Parts Attached 143 | 6 . 16 9 41 15 10 46 Power 13 | 1 . 1 . 5 1 1 4 Engine 10 | 1 . 1 . 5 . 1 2 Core 1 | . . . . . 1 . . Reactor 2 | . . . . . . . 2 Propulsion 32 | 2 . 3 2 8 2 2 13 Treads 27 | 2 . 3 2 8 2 2 8 Leg 4 | . . . . . . . 4 Wheel 1 | . . . . . . . 1 Hover . | . . . . . . . . Flight . | . . . . . . . . Utility 33 | 1 . 3 2 12 3 3 9 Device 9 | . . . . 3 1 . 5 Storage 2 | 1 . 1 . . . . . Processor 5 | . . . . 2 . . 3 Hackware 3 | . . . . 1 . 2 . Protection 14 | . . 2 2 6 2 1 1 Artifact . | . . . . . . . . Weapon 65 | 2 . 9 5 16 9 4 20 Energy Gun 14 | . . 3 1 2 . 1 7 Energy Cannon 2 | . . 1 . 1 . . . Ballistic Gun 28 | 2 . 3 2 8 7 2 4 Ballistic Cannon 2 | . . . . . . . 2 Launcher 19 | . . 2 2 5 2 1 7 Special Weapon . | . . . . . . . . Impact Weapon . | . . . . . . . . Slashing Weapon . | . . . . . . . . Piercing Weapon . | . . . . . . . . Special Melee Weapon . | . . . . . . . . Unidentified Prototypes 17 | . . 5 . 3 . 1 8 Corrupted Parts 2 | . . . 2 . . . . System Corruption 7 | . . . 7 . . . . Parts Lost 48 | . . . 6 11 5 1 25 Power 5 | . . . . 2 1 . 2 Propulsion 20 | . . . 2 4 1 1 12 Utility 16 | . . . 2 4 2 . 8 Weapon 7 | . . . 2 1 1 . 3 Highest Loss Streak 10 | . . . 6 7 1 1 10 To Critical Strikes . | . . . . . . . . Average Slot Usage (%) 91 | . 85 78 87 88 99 99 93 Engine 7 | . 14 11 11 8 2 6 4 Core 1 | . . . . . 6 2 . Treads 32 | . 28 28 32 34 36 35 27 Device 3 | . . . . 2 7 . 9 Storage 9 | . 14 11 11 9 9 9 6 Processor 4 | . . . . 6 1 . 14 Hackware 2 | . . . . 2 . 13 3 Protection 10 | . . 7 11 7 17 12 6 Energy Gun 4 | . . 6 10 4 . 3 3 Ballistic Gun 12 | . 28 14 11 8 17 12 9 Naked Turns . | . . . . . . . . Heaviest Build 79 | 11 11 68 68 79 76 72 73 Greatest Support 82 | 40 40 60 60 82 80 80 80 Greatest Overweight (x) 18 | . . 1 1 1 . 1 18 Average Overweight (x) . | . . . 1 . . . . Largest Inventory Capacity 20 | 8 8 20 20 20 20 20 20 Average Capacity 19 | 7 8 17 20 20 20 20 19 Most Carried 20 | 4 3 20 20 20 20 20 20 Average Carried 18 | . 2 15 19 19 19 19 19 Final Capacity 20 | 8 8 20 20 20 20 20 5 Final Carried 20 | 1 3 20 12 19 20 20 2 Class Distribution -------------------- 54% | Mutant 40% | Scavenger-Mutant 4% | Hacker-Mutant Dominant Class ---------------- Mutant | -10/Materials Mutant | -9/Materials Scavenger-Mutant | -9/Mines Mutant | -8/Materials Mutant | -8/Garrison Hacker-Mutant | -8/Materials Scavenger-Mutant | -7/Factory Resources | -11 -10 -9 -9 -8 -8 -8 -7 ----------- Run | Jun Mat Mat Min Mat Gar Mat Fac Matter Collected 4828 | 203 . 500 76 1024 1118 343 1564 Remotely . | . . . . . . . . Salvage Created 9330 | . 82 1427 413 2090 1158 609 3551 Parts 498 | . 3 86 23 101 56 26 203 Haulers Intercepted 19 | . 1 5 . 4 . 3 6 Recyclers Shooed 15 | . . 4 . 4 . . 7 Parts Field Recycled . | . . . . . . . . Retrieved Matter . | . . . . . . . . Parts Self-Destructed . | . . . . . . . . Prevented . | . . . . . . . . Kills | -11 -10 -9 -9 -8 -8 -8 -7 ------- Run | Jun Mat Mat Min Mat Gar Mat Fac Combat Hostiles Destroyed 186 | . 1 24 14 36 29 11 71 Guns 116 | . 1 22 12 19 29 6 27 Cannons 4 | . . . . 1 . . 3 AOE 65 | . . 2 2 15 . 5 41 Classes Destroyed 19 | . 2 8 1 4 1 1 2 Worker 19 | . . 3 . 5 . . 11 Builder 16 | . . 1 1 1 . . 13 Tunneler 1 | . . . . 1 . . . Hauler 19 | . 1 5 . 4 . 3 6 Recycler 18 | . . 3 1 5 . 1 8 Mechanic 2 | . . . . . . . 2 Operator 2 | . . 1 . 1 . . . Watcher 7 | . . 1 . 4 . 1 1 Swarmer 27 | . . 10 6 2 3 2 4 Grunt 93 | . 1 10 5 23 16 6 32 Brawler 2 | . . 1 . . . . 1 Duelist 8 | . . . . 3 1 1 3 Protector 7 | . . . . . . 1 6 Sentry 17 | . . 3 . 5 4 1 4 Specialist 13 | . . . . 2 3 . 8 Hunter 9 | . . . . . 2 . 7 Programmer 4 | . . . . . . . 4 Heavy 3 | . . . . 1 . . 2 Assembled 3 | . . . 3 . . . . Best Kill Streak 15 | . 2 8 3 8 6 5 15 Combat Bots Only 14 | . 1 6 3 7 6 5 14 Max Kills in Single Turn 7 | . 1 2 2 3 1 2 7 Gunslinging 1 | . . 1 . . . . . Exploded 6 | . . 2 2 2 . 1 6 Melee . | . . . . . . . . Uniques/NPCs Destroyed . | . . . . . . . . Combat | -11 -10 -9 -9 -8 -8 -8 -7 -------- Run | Jun Mat Mat Min Mat Gar Mat Fac Damage Taken 13077 | . 10 712 1376 3460 1518 508 5493 Core 1307 | . . 85 80 286 104 52 700 Absorbed by Shields . | . . . . . . . . Regen/Repaired (Parts) 490 | . . 45 . 126 . . 319 Core Remaining (%) 69 | 100 100 . 58 . . 19 . Volleys Fired 549 | . 2 81 30 124 101 33 178 Largest 2 | . 2 2 2 2 2 2 2 Hottest 480 | . 40 79 79 101 56 89 480 Shots Fired 956 | . 4 150 58 219 177 57 291 Gun 822 | . 4 148 57 153 171 48 241 Cannon 45 | . . . . 36 . . 9 Launcher 89 | . . 2 1 30 6 9 41 Special . | . . . . . . . . Kinetic 623 | . 4 103 32 97 171 38 178 Thermal 244 | . . 45 25 92 . 10 72 Explosive 87 | . . . 1 30 6 9 41 Electromagnetic 2 | . . 2 . . . . . Robot Hit Streak 18 | . 2 15 5 13 16 7 18 Robot Miss Streak 10 | . . 3 3 7 8 5 10 Penetration Max 1 | . . . . . 1 1 1 Secondary Targets 16 | . . 5 1 1 2 . 7 Max Gunslinging Chain 1 | . . 1 1 1 1 . 1 Shots Hit Robots 700 | . 2 102 36 160 145 40 215 Core Hits 717 | . 2 51 23 146 160 38 297 Critical Kills 3 | . 1 . . 1 . . 1 Critical Parts Destroyed 1 | . . . . . . . 1 Critical Strikes 15 | . 1 4 1 7 . . 2 Burn 11 | . . 4 1 6 . . . Meltdown 1 | . . . . 1 . . . Destroy 3 | . 1 . . . . . 2 Melee Attacks . | . . . . . . . . Impact . | . . . . . . . . Slashing . | . . . . . . . . Piercing . | . . . . . . . . Sneak Attacks . | . . . . . . . . Combat Hostiles . | . . . . . . . . Follow-up Attacks . | . . . . . . . . Damage Inflicted 24321 | . 31 1669 733 5085 2539 1408 12856 Guns 12087 | . 31 1544 582 2104 2504 820 4502 Cannons 832 | . . . . 522 . . 310 Explosions 11240 | . . 93 121 2420 35 586 7985 Melee . | . . . . . . . . Ramming 162 | . . 32 30 39 . 2 59 Kinetic 9238 | . 31 944 289 1374 2504 736 3360 Thermal 3785 | . . 600 293 1252 . 84 1556 Explosive 11043 | . . . 121 2420 35 586 7881 Electromagnetic 93 | . . 93 . . . . . Impact . | . . . . . . . . Slashing . | . . . . . . . . Piercing . | . . . . . . . . Highest Corruption 10 | . . . 10 . 1 2 3 Average Corruption 1 | . . . 3 . 1 1 2 Corruption Purged . | . . . . . . . . Corruption Blocked . | . . . . . . . . Effects 33 | . . . 1 . 7 10 15 Message Errors 6 | . . . . . 2 2 2 Matter Fused 4 | . . . . . . 2 2 Heat Flow Errors 5 | . . . 1 . 1 1 2 Energy Discharges 7 | . . . . . 2 1 4 Parts Fused 2 | . . . . . . 2 . Data Loss (minor) 3 | . . . . . 1 . 2 Data Loss (major) 1 | . . . . . . 1 . Misfires 2 | . . . . . 1 . 1 Alerts 2 | . . . . . . 1 1 Weapon Failures 1 | . . . . . . . 1 Overload Shots 4 | . . . . . . . 4 Overflow Damage 212 | . . . . 14 . 7 191 Projectiles 19 | . . . . . . . 19 Explosions 193 | . . . . 14 . 7 172 Melee . | . . . . . . . . Knockbacks 3 | . . . . . . 1 2 Impact 2 | . . . . . . 1 1 Kinetic 1 | . . . . . . . 1 Secondary . | . . . . . . . . Self-Inflicted Damage 501 | . . 1 12 268 37 46 137 Shots 15 | . . 1 1 9 1 1 2 Rammed 22 | . . 5 5 4 . 1 7 Targets Rammed 23 | . . 6 5 4 . 1 7 Kicked . | . . . . . . . . Crushed 1 | . . 1 . . . . . Highest Temperature 420 | . . 353 405 420 267 225 381 Average Temperature 91 | . . 114 131 119 71 61 61 Received Heat Transfer 3666 | . 6 216 312 1170 549 207 1206 Effects 8 | . . 3 1 4 . . . Shutdowns 1 | . . . . 1 . . . Energy Bleed 2 | . . 1 1 . . . . Interference 2 | . . 2 . . . . . Short Circuit 1 | . . . . 1 . . . Damage (major) 2 | . . . . 2 . . . Siege Activations . | . . . . . . . . Robots Corrupted . | . . . . . . . . Combat Hostiles . | . . . . . . . . Parts Fried . | . . . . . . . . Impact Corruptions . | . . . . . . . . Robots Melted 1 | . . . . 1 . . . Combat Hostiles 1 | . . . . 1 . . . Parts Melted 12 | . . 1 2 6 . . 3 Heat Transferred 7739 | . . 1554 703 2923 . 148 2411 Parts Sabotaged . | . . . . . . . . Parts Stolen . | . . . . . . . . Parts Stripped . | . . . . . . . . Power Chain Reactions 4 | . . 1 . . . . 3 Missiles Intercepted . | . . . . . . . . Alert | -11 -10 -9 -9 -8 -8 -8 -7 ------- Run | Jun Mat Mat Min Mat Gar Mat Fac Peak Influence 2026 | . 45 431 323 879 1548 1065 2026 Initial 754 | . . 18 168 5 571 754 477 Average 626 | . 25 208 146 326 1106 956 1050 Maximum Alert Level 5 | . . 2 1 3 4 3 5 Low Security (%) 28 | 100 100 60 89 20 . . . Level 1 17 | . . 26 10 55 . . . Level 2 14 | . . 13 . 17 12 . 30 Level 3 19 | . . . . 6 31 100 22 Level 4 17 | . . . . . 55 . 33 Level 5 1 | . . . . . . . 6 High Security 1 | . . . . . . . 6 Max Security . | . . . . . . . . Squads Dispatched 34 | . . 2 . 9 . 2 21 Investigation 8 | . . 1 . 4 . 1 2 Extermination 3 | . . . . . . . 3 Reinforcement 11 | . . 1 . 4 . . 6 Assault 10 | . . . . . . 1 9 Garrison 2 | . . . . 1 . . 1 Intercept . | . . . . . . . . Searches Triggered . | . . . . . . . . Construction Impeded 2 | . . . . . . . 2 Haulers Reinforced . | . . . . . . . . Active Scanning Responses . | . . . . . . . . Cargo Convoy Interrupts 1 | . . . . . . . 1 Stealth | -11 -10 -9 -9 -8 -8 -8 -7 --------- Run | Jun Mat Mat Min Mat Gar Mat Fac Distress Signals 11 | . . 2 . 3 . 3 3 Communications Jammed . | . . . . . . . . Distress Signals . | . . . . . . . . Times Spotted 267 | . 1 35 25 53 32 22 99 Peak Tracking Total 12 | . 1 5 9 7 5 6 12 Tactical Retreats 9 | . . 1 1 1 3 1 2 Traps | -11 -10 -9 -9 -8 -8 -8 -7 ------- Run | Jun Mat Mat Min Mat Gar Mat Fac Traps Triggered 4 | . . . . . 2 . 2 Indirectly . | . . . . . . . . Trap Hack Attempts . | . . . . . . . . Triggered . | . . . . . . . . Disarmed . | . . . . . . . . Reprogrammed . | . . . . . . . . Reused . | . . . . . . . . Traps Extracted . | . . . . . . . . Installed . | . . . . . . . . Triggered . | . . . . . . . . Most Traps Carried 1 | . . . . . 1 1 . Machines | -11 -10 -9 -9 -8 -8 -8 -7 ---------- Run | Jun Mat Mat Min Mat Gar Mat Fac Machines Disabled 31 | . . . . 11 8 3 9 Max in Single Turn 3 | . . . . 2 1 1 3 Garrison Relay 3 | . . . . . 3 . . Machines Repaired . | . . . . . . . . Machines Sabotaged . | . . . . . . . . Overloaded Fab Kills . | . . . . . . . . Hacking | -11 -10 -9 -9 -8 -8 -8 -7 --------- Run | Jun Mat Mat Min Mat Gar Mat Fac Machines Accessed 28 | . 2 3 1 10 3 4 5 Terminals 22 | . 2 2 1 8 3 4 2 Fabricators 2 | . . . . . . . 2 Repair Stations 3 | . . 1 . 1 . . 1 Recycling Units . | . . . . . . . . Scanalyzers . | . . . . . . . . Garrison Access 1 | . . . . 1 . . . Total Hacks 95 | . 11 9 3 32 5 17 18 Successful 42 | . 6 6 3 11 2 4 10 Failed 53 | . 5 3 . 21 3 13 8 Catastrophic 15 | . . . . 7 2 5 1 Database Lockouts . | . . . . . . . . Manual 60 | . 10 4 . 24 . 16 6 Terminals 76 | . 11 7 3 27 5 17 6 Fabricators 6 | . . . . . . . 6 Repair Stations 12 | . . 2 . 4 . . 6 Recycling Units . | . . . . . . . . Scanalyzers . | . . . . . . . . Garrison Access 1 | . . . . 1 . . . Terminal Hacks 22 | . 6 4 3 5 2 1 1 Record 2 | . . . 2 . . . . Robot Analysis 6 | . 5 1 . . . . . Prototype ID Bank 1 | . . 1 . . . . . Open Door 1 | . . . . . 1 . . Branch Access Points 2 | . . 1 . . . . 1 Terminal Index 2 | . . . . 1 . 1 . Fabricator Index 1 | . . . . 1 . . . Garrison Index 1 | . . . . 1 . . . Hauler Manifests 1 | . 1 . . . . . . Zone Layout 4 | . . 1 1 2 . . . Patrol Navigation 1 | . . . . . 1 . . Fabricator Hacks . | . . . . . . . . Repair Station Hacks 11 | . . 2 . 3 . . 6 Scan Component 6 | . . 1 . 2 . . 3 Repair 5 | . . 1 . 1 . . 3 Recycling Unit Hacks . | . . . . . . . . Scanalyzer . | . . . . . . . . Garrison Access Hacks 1 | . . . . 1 . . . Unlock Access 1 | . . . . 1 . . . Unauthorized Hacks 8 | . . . . 2 . 3 3 Terminals 5 | . . . . 2 . 3 . Assimilate 1 | . . . . . . 1 . Botnet 3 | . . . . 1 . 2 . Operators 1 | . . . . 1 . . . Fabricators 3 | . . . . . . . 3 Liberate 1 | . . . . . . . 1 Fabnet 1 | . . . . . . . 1 Haulers 1 | . . . . . . . 1 Repair Stations . | . . . . . . . . Recycling Units . | . . . . . . . . Scanalyzers . | . . . . . . . . Garrison Access . | . . . . . . . . Data Cores Recovered 1 | . . . . . . 1 . Used . | . . . . . . . . Hacking Detections 24 | . 2 2 1 9 1 4 5 Full Trace Events 11 | . . 1 . 5 1 3 1 Feedback Events 1 | . . . . . . 1 . Corruption 1 | . . . . . . 1 . Feedback Blocked . | . . . . . . . . Robot Schematics Acquired . | . . . . . . . . Robots Built . | . . . . . . . . Authchips . | . . . . . . . . Time . | . . . . . . . . Total Robot Build Rating . | . . . . . . . . Part Schematics Acquired . | . . . . . . . . Parts Built . | . . . . . . . . Authchips . | . . . . . . . . Time . | . . . . . . . . Total Part Build Rating . | . . . . . . . . Parts Repaired 5 | . . 1 . 1 . . 3 Time 172 | . . 26 . 26 . . 120 Parts Recycled . | . . . . . . . . Recycled Matter . | . . . . . . . . Retrieved Matter . | . . . . . . . . Retrieved Components . | . . . . . . . . Parts Scanalyzed . | . . . . . . . . Part Schematics Acquired . | . . . . . . . . Parts Damaged . | . . . . . . . . Bothacking | -11 -10 -9 -9 -8 -8 -8 -7 ------------ Run | Jun Mat Mat Min Mat Gar Mat Fac Used RIF Installer . | . . . . . . . . Robots Hacked . | . . . . . . . . Non-combat . | . . . . . . . . Combat . | . . . . . . . . Robot Hacks Applied . | . . . . . . . . Relay Couplers Released 13 | . . . . . 13 . . Machine Destruction 13 | . . . . . 13 . . Fabnet Peak Effective % . | . . . . . . . . Robots Rewired 3 | . . . . . 3 . . Allies Hacked . | . . . . . . . . Hacks Repelled . | . . . . . . . . Allies | -11 -10 -9 -9 -8 -8 -8 -7 -------- Run | Jun Mat Mat Min Mat Gar Mat Fac Total Allies 5 | . . . . . 5 . . Largest Group 3 | . . . . . 3 2 . Highest-Rated Group 56 | . . . . . 56 56 . Highest-Rated Ally 31 | . . . . . 31 31 . Total Orders . | . . . . . . . . Ally Attacks 44 | . . . . . 6 38 . Total Damage 499 | . . . . . 50 449 . Kills 5 | . . . . . . 5 . Allies Corrupted . | . . . . . . . . Allies Melted . | . . . . . . . . Intel | -11 -10 -9 -9 -8 -8 -8 -7 ------- Run | Jun Mat Mat Min Mat Gar Mat Fac Robot Analysis Total 5 | . 4 1 . . . . . Derelict Logs Recovered 1 | . . . 1 . . . . Drone Launches . | . . . . . . . . Drone Recoveries . | . . . . . . . . Exploration | -11 -10 -9 -9 -8 -8 -8 -7 ------------- Run | Jun Mat Mat Min Mat Gar Mat Fac Turns Passed 8380 | 61 152 1018 1293 1854 1608 618 1776 Spaces Moved 3331 | 41 91 317 489 684 769 292 648 Core 30 | 15 . . . . . . 15 Treads 3276 | 26 91 317 489 684 769 292 608 Legs 22 | . . . . . . . 22 Wheels 3 | . . . . . . . 3 Hover . | . . . . . . . . Flight . | . . . . . . . . Fastest Speed 50 | 50 160 160 240 156 167 162 100 Average Speed 184 | 119 160 213 240 180 168 165 166 Slowest Speed 950 | 160 160 240 240 250 170 243 950 Overloaded Moves . | . . . . . . . . Propulsion Burnouts . | . . . . . . . . Robots Hopped . | . . . . . . . . Cave-ins Triggered . | . . . . . . . . Exploration Rate (%) 42 | 4 20 42 87 61 76 28 22 Regions Visited 7 Branch Regions 1 Pre-discovered Areas . | . . . . . . . . Known Exits Taken 2 | . . 1 . 1 . . . Unknown Exits Taken 4 | 1 1 . 1 . . 1 . Scrap Searched 2 | . . . 2 . . . . Spaces Dug 69 | . . . . 30 39 . . Terrain Destroyed 691 | . . 4 6 212 59 60 350 Melee . | . . . . . . . . Projectile 9 | . . . . . . . 9 AOE 682 | . . 4 6 212 59 60 341 Terrain Rammed . | . . . . . . . . Walls Destroyed . | . . . . . . . . Machines Disabled . | . . . . . . . . Actions | -11 -10 -9 -9 -8 -8 -8 -7 --------- Run | Jun Mat Mat Min Mat Gar Mat Fac Total 4684 | 53 94 510 544 1085 930 374 1094 Wait 432 | . . 48 8 177 23 19 157 Move 3325 | 40 90 316 488 684 768 291 648 Hop . | . . . . . . . . Pick Up 108 | 7 2 26 2 30 8 9 24 Fast Attach 33 | . . 6 . 11 . 3 13 Attach 66 | 6 . 5 6 17 8 3 21 Detach 12 | . . 2 . 2 1 . 7 Swap 44 | . . 5 3 13 7 4 12 Drop 79 | . . 15 2 23 2 11 26 Fire 549 | . 2 81 30 124 101 33 178 Melee . | . . . . . . . . Ram . | . . . . . . . . Kick . | . . . . . . . . Crush 23 | . . 6 5 4 . 1 7 Escape Stasis . | . . . . . . . . Rewire 13 | . . . . . 12 . 1 Trap . | . . . . . . . . Miscellaneous . | . . . . . . . . Route ------- -11/Junkyard -10/Materials -9/Materials -9/Mines (discovered 3 exits: *Mat x2 / [*Zio]) -8/Materials (discovered 4 exits: *Fac x3 / Gar) -8/Garrison (discovered 4 exits: *Mat x4) -8/Materials -7/Factory (discovered 5 exits: [*Fac] / Sto x2 / Low x2) History --------- Turn | Location | Event 3 | -11/Junkyard | Discovered new exit (range 15) 62 | -11/Junkyard | Entered Materials 171 | -10/Materials | Discovered new exit (range 15) 214 | -10/Materials | Entered another Materials area 214 | -9/Materials | Evolved 2 slots: Propulsion x1, Utility x1 310 | -9/Materials | Build established: Mutant 399 | -9/Materials | Repaired Lgt. Treads 703 | -9/Materials | Discovered new exit (range 13) 1157 | -9/Materials | Identified exit to Mines 1232 | -9/Materials | Entered Mines 1255 | -9/Mines | A Derelict revealed a hidden shortcut to a safe place 1340 | -9/Mines | Learned Materials emergency access door positions 1447 | -9/Mines | Build established: Scavenger-Mutant 2461 | -9/Mines | Assembled infested the area 2466 | -9/Mines | Assisted by a Guerilla fighting off Assembled 2497 | -9/Mines | Discovered new exit (range 16) 2508 | -9/Mines | Discovered new exit (range 6) 2525 | -9/Mines | System corruption reached 10% 2525 | -9/Mines | Entered Materials 2525 | -8/Materials | Evolved 2 slots: Propulsion x1, Utility x1 2526 | -8/Materials | Lost 6 parts (2n2u2w) 2776 | -8/Materials | Repaired Lgt. Treads 2782 | -8/Materials | Discovered new exit (range 16) 3433 | -8/Materials | Lost 7 parts (1p3n2u1w) 3433 | -8/Materials | Found Prototype Device 3624 | -8/Materials | Discovered new exit (range 11) 3825 | -8/Materials | Build established: Mutant 4164 | -8/Materials | Discovered new exit (range 12) 4227 | -8/Materials | Destroyed 7 combat bots 4356 | -8/Materials | Garrison activated, responded to threat 4360 | -8/Materials | Core integrity fell below 50% 4379 | -8/Materials | Identified exit to Garrison 4379 | -8/Materials | Entered Garrison 4434 | -8/Garrison | Triggered checkpoint 4546 | -8/Garrison | Triggered checkpoint 4659 | -8/Garrison | Discovered new exit (range 13) 4908 | -8/Garrison | Triggered checkpoint 5297 | -8/Garrison | Discovered new exit (range 11) 5310 | -8/Garrison | Triggered checkpoint 5370 | -8/Garrison | Garrison Relay disabled 5379 | -8/Garrison | Garrison Relay disabled 5614 | -8/Garrison | Triggered checkpoint 5637 | -8/Garrison | Discovered new exit (range 6) 5716 | -8/Garrison | Triggered checkpoint 5830 | -8/Garrison | Triggered checkpoint 5869 | -8/Garrison | Garrison Relay disabled 5904 | -8/Garrison | Discovered new exit (range 11) 5934 | -8/Garrison | Rescued a captive Derelict 5935 | -8/Garrison | Rescued a captive Derelict 5987 | -8/Garrison | Entered Materials 5987 | -8/Materials | Accompanied by 2 allies 6201 | -8/Materials | Discovered new exit (range 13) 6330 | -8/Materials | Build established: Hacker-Mutant 6387 | -8/Materials | First assault squad dispatched 6460 | -8/Materials | Core integrity fell below 20% 6605 | -8/Materials | Entered Factory 6605 | -7/Factory | Evolved 2 slots: Utility x2 6773 | -7/Factory | Build established: Scavenger-Mutant 6982 | -7/Factory | Repaired Rocket Launcher 7027 | -7/Factory | Repaired Flak Gun 7071 | -7/Factory | Repaired Gauss Rifle 7405 | -7/Factory | First assault squad dispatched 7581 | -7/Factory | Destroyed 8 combat bots 7800 | -7/Factory | Cargo convoy interrupted 7801 | -7/Factory | Garrison activated, responded to threat 7831 | -7/Factory | Destroyed 9 combat bots 7893 | -7/Factory | Build established: Mutant 8053 | -7/Factory | Identified exit to Storage 8053 | -7/Factory | Identified exit to Lower Caves 8261 | -7/Factory | Discovered new exit (range 8) 8271 | -7/Factory | Core integrity fell below 50% 8271 | -7/Factory | High security lockdown imminent 8302 | -7/Factory | Lost 10 parts (1p5n2u2w) 8312 | -7/Factory | Destroyed 14 combat bots 8351 | -7/Factory | High security lockdown engaged 8356 | -7/Factory | Core integrity fell below 20% 8366 | -7/Factory | Identified Active Sensor Suite 8381 | -7/Factory | Destroyed by Y-54 Guardian with Gatling Laser Last Messages --------------- 08335_ Acquired 11 matter. 08336_ ALERT: Performing unscheduled system reset. 08341_ The unstable cave ceiling collapses. 08351_ ALERT: Lockdown in effect, collecting threat data. 08351_ Flexi-carbon Leg destroyed. 08351_ K-01 Serf exits level. 08354_ Y-54 Guardian destroyed. 08354_ Carbon-fiber Leg destroyed. 08360_ Y-54 Guardian destroyed. 08362_ The unstable cave ceiling collapses. 08362_ K-01 Serf destroyed. 08364_ The unstable cave ceiling collapses. 08365_ Carbon-fiber Leg destroyed. 08365_ Dropped Hcp. Storage Unit. 08366_ Identified Active Sensor Suite. 08367_ The unstable cave ceiling collapses. 08367_ Dropped Cold Fusion Reactor. 08368_ Coolant Injector destroyed. 08371_ The unstable cave ceiling collapses. 08371_ ALERT: Assault forces dispatched. Map ----- +----------------------------------------------------+ | #???????????????????????????????????????????????? | | #???????????????????????????????????????????????? | | ##??????????????????????????????????????????????? | | # ##????????????????????????????????????????????? | | # #????????????????????????????????????????????? | | ##???????????????????????????????????????????? | | #?????? ???????????????????????????????????? | | # #????? ???????????????????????????????????? | | ### ######"####?????????????????????????????????? | | ????????????????????????????????? | | ! ????? ?????????????????????? | | a %[ ???? Y ???????????????????? | | [ ?????? ???????????????????? | | % ?????? ???????????????????? | | ######??????? ???????????????????? | | ##???????????? ????????????????????? | | [ #?#####???????# k#????????????????????? | | ##? ????????# #????????????????????? | | # #? "?????????# #????????????????????? | | % %#? "?????????+ #????????????????????? | | ! ## ??????????# #????????????????????? | | !???????????# #??#######???????????? | | #??????????# ## #???????????? | | # [############ #???????????? | | ][!*[ ????????? | | < []* @ ! ???H????? | | ** ????????? | | ############# #???????????? | | # ????????????######## #???????????? | | # # ???????????????????????######???????????? | | ## ##????????????????????????????????????????? | | | | | | | | | | | | | | | | | | | | | | | | | | | | | | | | | | | | | | | +----------------------------------------------------+ Best States ------------- Heat Dissipation 45 Coolant Potential 130 Energy Generation 18 Energy Capacity 310 Matter Stores 300 Matter Capacity 300 Sight Range 16 Terrain Scan Density 10 Armor Coverage 600 Weapon Cycling 15 Evasion (%) 40 Targeting Accuracy 8 Armor Integrity Analysis 30 Recoil Reduction 4 Matter Filtering 50 Offensive Hacking 10 Defensive Hacking 10 Authchip Count 1 Item Schematics ----------------- None Robot Schematics ------------------ None Fabricated ------------ Nothing Alien Tech Used ----------------- None Achievements -------------- None Challenges ------------ None Game ------ Seed GlidesysVortexMicroactuators Manual? 0 Play Time 00:52:48 Cumulative 724.0 hours Start 2023.08.27 @ 12:23:33 End 2023.08.27 @ 20:15:59 Sessions 3 Manual Loads 0 Difficulty Rogue Special Mode None Game No. 469 Rogue 462 Adventurer 0 Explorer 7 Win Type - Total 53 Types 20/5/19/2/0/1/4/1/1 Lore% 90 Gallery% 96 Achievement% 83 Wizard Run 0 Options --------- ASCII 0 Keyboard 0 Movement Numpad Keybinds 0 Fullscreen 1 Font 18/X11Bold Map View 76x50 Tactical HUD 1 Map Filters NONE Filters NONE Steam 1 RUN: 7f0c1610-2b28-4b01-8208-c73bb6c15ff0